bitfinex-derivatives/quotes_ETHF0:USTF0_20250904
["timestamp","ask_amount","ask_price","bid_price","bid_amount"]
[1756949567401,0.48807634,4480.2,4479.9,0.62486]
[1756949567605,0.2874,4480.7,4480.1,3.14040382]
[1756949567809,0.2874,4480.7,4480.2,0.231]
[1756949567810,0.48801991,4480.6,4480.2,0.231]
[1756949568110,0.48801991,4480.5,4480.2,0.231]
[1756949568412,0.48801991,4480.4,4480.2,0.231]
[1756949568613,0.2874,4480.3,4480.1,3.14040382]
[1756949568809,0.2874,4480.3,4480.2,0.231]
[1756949569106,0.4892,4480.2,4480.1,3.14040382]
[1756949569312,0.98227174,4480.2,4480.1,3.14040382]
[1756949569512,0.77547174,4480.2,4480.1,3.37140382]
[1756949569810,0.98227174,4480.2,4480.1,3.37140382]
[1756949570208,0.77547174,4480.2,4480.1,3.37140382]
[1756949570407,0.48807174,4480.2,4480.1,3.37140382]
[1756949571111,0.98227174,4480.2,4480.1,3.37140382]
[1756949571507,0.98227174,4480.2,4480.1,3.14040382]
[1756949571705,0.98227174,4480.2,4480.1,3.37140382]
[1756949571911,0.98227174,4480.2,4480.1,0.231]
[1756949572111,0.77547174,4480.2,4480.1,0.231]
[1756949573201,0.77547174,4480.2,4479.5,40.8]
[1756949573202,0.2874,4479.9,4479.6,3.14040382]
[1756949573402,0.2874,4479.7,4479.6,3.14040382]
[1756949573605,0.48807174,4479.7,4479.6,3.37140382]
[1756949573806,0.48807174,4479.7,4479.6,3.14040382]
[1756949574004,0.48807174,4479.7,4479.6,3.37140382]
[1756949574411,0.1216,4479.5,4479.4,32.167]
[1756949574614,0.409,4479.5,4479.4,35.53840382]
[1756949575415,0.409,4479.5,4479.4,35.30740382]
[1756949575615,0.409,4479.5,4479.4,35.53840382]
[1756949576106,0.2068,4479.1,4478.2,0.4018]
[1756949576316,0.4942,4478.8,4478.7,3.14040382]
[1756949576509,0.4942,4478.8,4478.7,3.37140382]
[1756949576813,0.4942,4478.8,4478.7,44.17140382]
[1756949577014,0.2874,4478.8,4478.7,44.17140382]
[1756949577212,0.409,4479.0,4478.7,3.14040382]
[1756949577406,0.2874,4478.9,4478.8,0.231]
[1756949578009,0.4942,4478.4,4478.3,40.8]
[1756949578205,0.1216,4479.0,4478.3,44.57319382]
[1756949578206,0.409,4479.0,4478.3,44.57319382]
[1756949578415,0.409,4479.0,4478.9,3.14040382]
[1756949578617,0.6158,4479.0,4478.9,3.37140382]
[1756949579315,0.409,4479.0,4478.9,3.37140382]
[1756949579916,0.6158,4479.0,4478.9,3.37140382]
[1756949580212,1.30696208,4479.0,4478.6,3.14040382]
[1756949580407,0.696,4478.7,4478.6,3.14040382]
[1756949580609,0.48936586,4478.9,4478.1,32.155]
[1756949580610,0.1216,4478.5,4478.1,32.155]
[1756949580806,0.696,4478.2,4478.1,32.155]
[1756949581207,0.696,4478.2,4478.1,32.386]
[1756949581816,1.18603806,4478.2,4478.1,32.386]
[1756949582017,0.98423806,4478.2,4478.1,32.386]
[1756949582607,0.98423806,4478.2,4478.1,32.155]
[1756949583020,0.98423806,4478.2,4478.1,32.386]
[1756949584611,0.77743806,4478.2,4478.1,32.386]
[1756949584817,0.49003806,4478.2,4478.1,32.386]
[1756949585219,0.77743806,4478.2,4478.1,32.386]
[1756949585818,0.77743806,4478.2,4478.1,32.155]
[1756949586122,0.77743806,4478.2,4478.1,32.386]
[1756949587117,0.4086,4478.1,4477.2,40.8]
[1756949587318,0.4942,4477.4,4477.1,0.231]
[1756949587523,0.2874,4477.2,4477.0,3.14040382]
[1756949587715,0.77743806,4477.1,4477.0,3.14040382]
[1756949587920,1.18603806,4477.1,4477.0,3.14040382]
[1756949588322,0.77743806,4477.1,4477.0,3.37140382]
[1756949588716,0.98423806,4477.1,4477.0,3.37140382]
[1756949588924,1.18603806,4477.1,4477.0,3.14040382]
[1756949589220,1.18603806,4477.1,4475.4,32.38028732]
[1756949589221,0.8176,4476.5,4476.4,3.14040382]
[1756949589524,0.2874,4476.4,4475.8,3.14040382]
[1756949589828,0.4942,4476.4,4475.9,0.231]
[1756949590120,0.2068,4475.9,4475.8,3.14040382]
[1756949590417,0.1216,4476.5,4475.8,0.231]
[1756949590418,0.1216,4476.0,4475.8,0.231]
[1756949590623,0.6158,4476.5,4475.9,3.14040382]
[1756949590820,0.2874,4476.4,4476.0,0.231]
[1756949591329,0.1216,4476.5,4476.0,0.231]
[1756949591622,0.2874,4476.4,4476.0,0.231]
[1756949591822,0.2068,4476.1,4476.0,0.231]
[1756949592024,0.4991,4476.1,4476.0,0.231]
[1756949592423,0.4991,4476.1,4475.9,3.14040382]
[1756949592624,0.5131,4476.0,4475.4,32.157]
[1756949592823,0.4139,4475.5,4475.4,32.157]
[1756949593128,0.4139,4475.5,4475.4,32.388]
[1756949593617,0.2923,4476.1,4475.4,32.388]
[1756949593817,0.2923,4476.1,4476.0,3.14040382]
[1756949594017,0.2923,4476.1,4476.0,3.37140382]
[1756949594424,0.4868,4476.1,4476.0,3.37140382]
[1756949595023,0.2923,4476.1,4474.7,1.60741803]
[1756949595226,0.2923,4475.9,4474.5,1.60741803]
[1756949595426,0.1216,4476.0,4474.5,1.60741803]
[1756949595427,0.1216,4475.0,4474.6,0.232]
[1756949595731,0.4139,4475.0,4474.9,3.14040382]
[1756949595918,0.4139,4475.0,4474.9,3.37240382]
[1756949597122,0.4139,4475.0,4474.9,0.232]
[1756949597522,0.1216,4475.0,4474.5,4.74782185]
[1756949597722,0.1216,4475.0,4474.6,0.232]
[1756949598123,0.2923,4474.9,4474.6,0.232]
[1756949598325,0.2923,4474.9,4474.6,1.83941803]
[1756949598524,0.2923,4474.9,4474.6,1.60741803]
[1756949598726,0.2923,4474.9,4474.7,0.232]
[1756949598925,0.2923,4474.9,4474.8,0.232]
[1756949599425,0.1216,4475.5,4474.8,0.232]
[1756949599626,0.2923,4475.4,4475.3,3.14040382]
[1756949599822,0.2923,4475.4,4475.3,3.37240382]
[1756949600023,0.2923,4475.4,4475.1,3.14040382]
[1756949600224,0.2923,4475.4,4475.2,0.232]
[1756949600624,0.1216,4475.5,4475.1,3.14040382]
[1756949600819,0.2923,4475.4,4475.2,0.232]
[1756949601322,0.2923,4475.4,4475.3,0.232]
[1756949601624,0.2923,4475.4,4475.1,3.14040382]
[1756949601828,0.2923,4475.4,4475.2,0.232]
[1756949602323,0.1216,4475.5,4475.2,0.232]
[1756949602829,0.2923,4475.4,4475.2,0.232]
[1756949603030,0.1216,4475.5,4475.1,4.74782185]
[1756949603229,0.2923,4475.4,4475.2,1.83941803]
[1756949603527,0.1216,4475.5,4475.2,1.83941803]
[1756949603724,0.1945,4475.3,4475.2,1.83941803]
[1756949603925,0.4868,4475.3,4475.2,1.83941803]
[1756949604227,0.4868,4475.3,4475.2,0.232]
[1756949604432,0.3915,4475.3,4474.7,3.14040382]
[1756949604633,0.6838,4474.8,4474.7,5.96689752]
[1756949604823,0.6838,4474.8,4474.7,2.8264937]
[1756949605124,0.6838,4474.8,4474.7,0.232]
[1756949605331,0.1216,4475.0,4474.7,0.232]
[1756949605528,0.6838,4474.8,4474.7,2.79113723]
[1756949605725,0.6838,4474.8,4474.7,3.02313723]
[1756949605922,4.2923,4474.8,4474.7,2.79113723]
[1756949606146,4.51578,4474.8,4474.7,2.47793723]
[1756949606318,0.1216,4474.5,4474.4,0.232]
[1756949606524,0.4139,4474.5,4474.4,0.232]
[1756949607031,0.4139,4474.5,4474.2,0.232]
[1756949607229,0.2923,4474.4,4474.2,0.232]
[1756949607631,0.4139,4474.0,4473.9,4.0378482]
[1756949607836,0.4139,4474.0,4473.9,4.2698482]
[1756949608230,0.4139,4474.0,4473.9,4.0378482]
[1756949608432,0.4139,4474.0,4473.9,4.2698482]
[1756949608933,0.8054,4474.0,4473.9,4.4759482]
[1756949609132,0.8054,4474.0,4473.9,4.2439482]
[1756949609335,0.8054,4474.0,4473.9,4.4759482]
[1756949609734,0.8054,4474.0,4473.9,0.4381]
[1756949614226,0.3915,4473.7,4473.6,5.2492026]
[1756949614431,0.3915,4473.7,4473.6,5.4802026]
[1756949614432,0.6838,4473.7,4473.6,5.4802026]
[1756949614636,0.6838,4473.7,4473.6,5.6863026]
[1756949615528,0.6838,4473.7,4473.6,5.2492026]
[1756949615734,0.6838,4473.7,4473.6,5.4802026]
[1756949615930,0.6838,4473.7,4473.6,5.8895026]
[1756949618337,0.6838,4473.7,4473.6,0.6403]
[1756949619740,0.2923,4474.9,4474.2,0.3026]
[1756949619936,0.6838,4474.7,4474.6,3.24261467]
[1756949620129,0.6838,4474.7,4474.6,3.03941467]
[1756949623535,0.6838,4474.7,4474.6,0.2061]
[1756949623833,0.2891,4474.6,4473.7,2.83331467]
[1756949624034,0.1216,4475.0,4473.6,0.2858]
[1756949624035,0.4967,4473.9,4473.8,0.3939]
[1756949624235,0.7026,4473.9,4473.8,0.231]
[1756949624636,0.7026,4473.9,4473.5,0.231]
[1756949625138,0.2076,4473.9,4473.5,0.231]
[1756949625343,0.4135,4473.9,4473.8,0.2034]
[1756949625843,0.7026,4473.9,4473.8,0.2034]
[1756949626043,0.7026,4473.9,4473.5,0.231]
[1756949626431,0.4135,4473.9,4473.1,3.11911467]
[1756949626636,0.4967,4473.3,4473.2,0.6249]
[1756949626935,0.4967,4473.3,4473.2,0.9107]
[1756949627438,0.4967,4473.3,4473.2,0.6797]
[1756949627640,0.4967,4473.3,4473.2,0.9107]
[1756949628245,0.2891,4473.3,4473.2,0.9107]
[1756949629945,0.4967,4473.3,4473.2,0.9107]
[1756949630648,0.4967,4473.3,4473.2,0.6797]
[1756949631146,0.7026,4473.3,4473.2,0.6249]
[1756949631447,0.7026,4473.3,4473.2,0.3939]
[1756949631947,0.7026,4473.3,4473.2,0.6249]
[1756949632746,0.7026,4473.3,4473.2,0.3939]
[1756949632947,0.7026,4473.3,4473.2,0.6249]
[1756949633244,0.7026,4473.3,4473.2,0.2034]
[1756949633448,0.7026,4473.3,4473.2,0.4344]
[1756949633649,0.7026,4473.3,4473.2,0.6249]
[1756949633844,0.4967,4473.3,4473.2,0.9107]
[1756949635348,0.7026,4473.3,4473.2,0.6249]
[1756949640255,0.7026,4473.3,4473.2,0.3939]
[1756949640457,0.4135,4473.3,4473.2,0.23]
[1756949640658,0.4135,4473.3,4473.2,0.4334]
[1756949641056,0.7026,4473.3,4473.2,0.4334]
[1756949641258,0.7026,4473.3,4473.2,0.2034]
[1756949641555,0.7026,4473.3,4473.2,1.2430176]
[1756949642152,0.7026,4473.3,4473.2,1.4335176]
[1756949642358,0.2891,4473.5,4473.4,0.3939]
[1756949642557,0.2891,4473.5,4473.4,0.9097]
[1756949643257,0.6195,4473.5,4473.4,0.9097]
[1756949643853,0.8254,4473.5,4473.4,0.6239]
[1756949644056,0.2891,4474.0,4473.9,0.6797]
[1756949644358,0.4967,4474.0,4473.9,3.7429289]
[1756949644658,0.2891,4474.0,4473.9,3.7429289]
[1756949644853,0.2891,4474.4,4474.0,0.2858]
[1756949645060,0.7026,4474.4,4474.3,0.3939]
[1756949645463,0.2891,4474.9,4474.3,0.9097]
[1756949645662,0.8242,4475.0,4474.9,0.2034]
[1756949646359,0.8242,4475.0,4474.6,0.23]
[1756949651856,0.1194,4474.5,4474.4,2.8332289]
[1756949652052,0.8015,4474.5,4474.4,3.0632289]
[1756949652257,0.8015,4474.5,4474.4,3.2545289]
[1756949652658,0.8015,4474.5,4474.4,3.4506289]
[1756949652859,0.8015,4474.5,4474.4,3.7600289]
[1756949653160,0.6084,4475.0,4474.9,0.3874]
[1756949653363,0.1228,4475.5,4475.0,0.3094]
[1756949653666,0.8049,4475.5,4475.1,0.23]
[1756949654059,0.8049,4475.5,4475.4,0.1913]
[1756949654254,0.8049,4475.5,4475.4,0.6968]
[1756949654566,0.2858,4475.9,4475.4,3.7600289]
[1756949654760,0.1228,4476.0,4475.4,3.4506289]
[1756949654960,0.2858,4475.9,4475.4,3.7600289]
[1756949655261,0.1228,4476.0,4475.4,3.62465036]
[1756949655462,0.2858,4475.9,4475.4,3.93405036]
[1756949655765,0.4868,4475.9,4475.8,0.3874]
[1756949656169,0.2858,4476.4,4475.8,0.6968]
[1756949656468,0.6821,4476.4,4476.3,0.1913]
[1756949657164,0.6821,4476.4,4476.3,0.3874]
[1756949657360,0.6821,4476.4,4476.3,0.6968]
[1756949657361,0.4868,4476.4,4476.3,0.6968]
[1756949658459,0.1194,4477.0,4476.3,4.6108]
[1756949658664,0.1194,4477.0,4476.9,0.3874]
[1756949658665,0.8015,4477.0,4476.9,0.3874]
[1756949658872,0.8015,4477.0,4476.9,0.6174]
[1756949661078,0.2858,4477.5,4477.4,0.6968]
[1756949661278,0.6062,4478.0,4477.9,0.3874]
[1756949661468,0.6062,4478.0,4477.4,3.2545289]
[1756949661469,0.1194,4477.5,4477.4,3.2545289]
[1756949661670,0.4868,4477.5,4477.4,3.7600289]
[1756949661864,0.4052,4478.0,4477.4,3.7600289]
[1756949662069,0.6062,4478.0,4477.9,3.2206289]
[1756949662274,0.8015,4478.0,4477.0,0.23]
[1756949663375,0.8015,4478.0,4476.9,3.1426289]
[1756949663574,0.201,4477.3,4477.2,3.2206289]
[1756949663774,0.2858,4477.5,4477.2,3.2206289]
[1756949663976,0.2858,4477.5,4477.4,0.6968]
[1756949664177,0.2858,4477.5,4477.4,0.9268]
[1756949664386,0.4868,4477.5,4477.4,0.9268]
[1756949664575,0.2858,4477.5,4477.4,0.9268]
[1756949664774,0.2858,4477.9,4477.4,0.9268]
[1756949665273,0.1194,4478.0,4477.4,0.6174]
[1756949665477,0.1194,4478.5,4477.9,1.50450424]
[1756949665676,0.8015,4478.5,4478.4,1.19510424]
[1756949665881,0.2858,4478.9,4478.5,0.3094]
[1756949666077,0.4868,4478.9,4478.8,1.19510424]
[1756949666276,0.6821,4478.9,4478.8,0.80770424]
[1756949667875,0.4868,4478.9,4478.8,1.50450424]
[1756949668269,0.2858,4478.9,4478.8,1.50450424]
[1756949668883,0.6821,4478.9,4478.6,0.23]
[1756949669076,0.6821,4478.9,4478.8,0.80770424]
[1756949669478,0.1194,4478.5,4478.4,0.1913]
[1756949669884,0.5157,4478.5,4478.4,0.1913]
[1756949670085,0.8015,4478.5,4478.4,0.1913]
[1756949670785,0.2858,4478.4,4478.0,2.82722048]
[1756949670978,0.4868,4478.2,4478.1,0.9268]
[1756949671179,0.4868,4478.2,4478.1,0.3874]
[1756949671480,0.2858,4478.1,4477.5,2.82722048]
[1756949671681,0.6821,4477.7,4477.6,0.4213]
[1756949671882,0.6821,4477.7,4477.6,0.6174]
[1756949672781,0.5157,4477.5,4477.0,2.82722048]
[1756949673090,0.3963,4477.2,4477.1,0.4213]
[1756949673280,0.6821,4477.2,4477.1,0.4213]
[1756949675587,0.6821,4477.2,4477.1,0.1913]
[1756949675886,0.6821,4477.2,4477.1,0.4213]
[1756949677086,0.6821,4476.6,4476.5,3.21462048]
[1756949677278,0.1194,4477.0,4476.5,3.75402048]
[1756949677484,0.8015,4477.0,4476.9,0.1913]
[1756949677678,0.8015,4477.0,4476.9,0.4213]
[1756949677983,0.8015,4477.0,4476.9,0.6174]
[1756949678184,0.6062,4477.0,4476.9,0.9268]
[1756949679675,0.5157,4477.0,4476.5,3.14045791]
[1756949679880,0.5157,4477.0,4476.1,0.3874]
[1756949679881,0.6821,4476.2,4476.1,0.3874]
[1756949680082,0.8015,4476.0,4475.9,0.1913]
[1756949680283,0.8015,4476.0,4475.9,0.4213]
[1756949681097,0.2858,4475.9,4474.9,0.3094]
[1756949681289,0.2858,4475.7,4475.0,0.23]
[1756949681788,0.4868,4475.1,4475.0,0.6174]
[1756949682181,0.6821,4475.1,4475.0,0.6174]
[1756949683385,0.6821,4475.1,4475.0,0.9048]
[1756949683587,0.6821,4475.1,4475.0,0.6174]
[1756949684182,0.6821,4475.1,4474.5,32.169]
[1756949684183,0.1216,4475.0,4474.5,32.169]
[1756949684487,0.8303,4475.0,4474.9,0.2003]
[1756949684688,0.8303,4475.0,4474.9,0.4303]
[1756949684888,0.8303,4475.0,4474.9,0.23]
[1756949685087,0.3108,4474.9,4474.8,0.23]
[1756949685288,0.8303,4474.5,4474.4,0.2003]
[1756949685586,0.3108,4474.9,4474.4,0.9238]
[1756949685786,0.6295,4475.0,4474.9,0.4064]
[1756949686491,0.5079,4475.0,4474.9,0.6938]
[1756949686990,0.6295,4475.0,4474.9,0.6938]
[1756949687890,0.5195,4475.0,4474.7,3.14045791]
[1756949688190,0.7087,4474.9,4474.8,0.23]
[1756949689192,0.5079,4474.2,4474.1,3.51889173]
[1756949689391,0.1216,4474.5,4474.1,4.06425791]
[1756949689580,0.4324,4474.5,4474.4,0.6938]
[1756949689785,0.6295,4474.5,4474.4,0.9238]
[1756949690092,0.6295,4474.5,4474.4,0.6364]
[1756949691195,0.8303,4474.5,4474.4,0.6364]
[1756949692993,0.8303,4474.5,4474.4,0.9238]
[1756949693496,0.8303,4474.5,4474.4,0.6364]
[1756949694095,0.8303,4474.5,4474.4,0.4064]
[1756949694294,0.7087,4473.7,4473.6,0.4064]
[1756949694493,0.7087,4473.7,4473.6,0.6364]
[1756949694794,0.7087,4473.7,4473.6,0.23]
[1756949696297,0.7087,4473.7,4472.5,0.105]
[1756949696298,0.7087,4472.9,4472.0,0.23]
[1756949697801,0.7087,4472.9,4472.0,0.40495438]
[1756949698012,0.7087,4472.9,4472.0,0.23]
[1756949698296,0.7087,4472.9,4472.2,0.124]
[1756949699403,0.7087,4472.3,4472.2,0.5304]
[1756949699604,0.7087,4472.3,4472.2,0.8178]
[1756949700804,0.7087,4472.3,4472.2,0.5304]
[1756949701002,0.1971,4472.3,4472.2,0.8178]
[1756949701405,0.5079,4472.3,4472.2,0.8178]
[1756949701707,0.7087,4472.3,4472.2,0.4064]
[1756949702208,0.7087,4472.3,4472.2,0.6938]
[1756949702706,0.7087,4472.3,4472.0,3.37045791]
[1756949702707,0.7087,4472.3,4472.0,0.23]
[1756949703205,0.3979,4471.8,4471.7,0.6364]
[1756949703405,0.7087,4471.8,4471.7,0.9238]
[1756949703604,0.3108,4472.9,4472.4,0.2874]
[1756949703801,0.1216,4473.5,4472.8,0.6938]
[1756949704006,0.5079,4473.4,4473.3,0.4064]
[1756949704209,0.5079,4473.4,4473.3,0.6938]
[1756949704707,0.5079,4473.9,4473.8,0.6938]
[1756949705296,0.3108,4474.4,4473.8,0.6938]
[1756949705608,0.3108,4474.4,4473.8,0.9238]
[1756949705803,0.3108,4474.4,4473.9,0.2874]
[1756949706010,0.5195,4475.0,4474.9,0.2003]
[1756949706311,0.8303,4475.0,4474.9,0.2003]
[1756949706812,0.4324,4475.5,4474.9,0.6938]
[1756949707206,0.3108,4475.5,4475.4,0.6938]
[1756949707507,0.4324,4476.0,4475.4,0.6938]
[1756949707710,0.4324,4476.0,4475.4,0.9238]
[1756949711013,0.1971,4475.5,4475.4,0.9238]
[1756949711314,0.1216,4476.0,4475.4,0.9238]
[1756949711502,0.4324,4476.0,4475.4,0.6364]
[1756949711704,0.3108,4476.4,4475.9,0.6938]
[1756949711911,0.3012,4476.4,4475.9,0.7062]
[1756949712110,0.1216,4477.0,4475.9,0.4064]
[1756949712812,0.3012,4476.4,4475.9,0.7062]
[1756949713213,0.1247,4476.5,4476.0,0.23]
[1756949713515,0.7024,4476.1,4476.0,0.6367]
[1756949713817,0.7024,4476.1,4476.0,0.9365]
[1756949714017,0.3012,4476.4,4476.3,0.4067]
[1756949714215,0.3012,4476.9,4476.3,0.7065]
[1756949715108,0.3012,4476.9,4476.3,0.4067]
[1756949715313,0.5056,4476.9,4476.8,0.4067]
[1756949715515,0.3012,4477.4,4476.8,3.84695791]
[1756949715716,0.5056,4476.9,4476.8,0.7065]
[1756949716110,0.1216,4477.5,4476.8,0.4067]
[1756949716321,0.824,4477.5,4477.4,0.2002]
[1756949716816,0.824,4477.5,4476.8,0.2998]
[1756949717221,0.824,4477.5,4477.4,0.2002]
[1756949718515,0.824,4477.5,4476.8,0.2998]
[1756949719215,0.824,4477.5,4477.4,0.2002]
[1756949722619,0.824,4477.5,4477.0,0.2998]
[1756949722820,0.824,4477.5,4476.7,0.23]
[1756949723017,0.824,4477.5,4476.8,0.2998]
[1756949723222,0.824,4477.5,4476.1,0.2998]
[1756949723419,0.22339001,4477.4,4475.5,3.55455791]
[1756949723620,0.52192845,4477.3,4475.6,0.45339]
[1756949723925,0.3012,4477.2,4475.6,0.45339]
[1756949724124,0.2044,4475.8,4475.7,0.4067]
[1756949724317,0.5056,4475.8,4475.7,0.4067]
[1756949724517,0.7024,4475.8,4475.7,0.4067]
[1756949725020,0.1247,4476.0,4475.3,0.2998]
[1756949725021,0.2044,4475.4,4475.3,0.4302]
[1756949725324,0.2044,4475.4,4475.3,0.6367]
[1756949725723,0.2044,4475.4,4475.3,0.9365]
[1756949726825,0.5056,4475.4,4475.3,0.9365]
[1756949730427,0.7024,4475.4,4475.3,0.9365]
[1756949730628,0.7024,4475.4,4474.1,0.2998]
[1756949730629,0.3012,4474.9,4474.1,0.2998]
[1756949730823,0.2044,4474.3,4474.2,32.4938]
[1756949731129,0.5056,4474.5,4474.4,0.7065]
[1756949731520,0.8271,4474.5,4474.4,0.4067]
[1756949731721,0.1247,4475.0,4474.4,0.7065]
[1756949732022,0.7024,4474.9,4474.8,0.2002]
[1756949732218,0.7024,4474.9,4474.3,0.2998]
[1756949733022,0.7024,4474.9,4474.8,0.2002]
[1756949733728,0.7024,4474.9,4474.3,0.2998]
[1756949734528,0.7024,4474.9,4474.2,0.23]
[1756949734529,0.1247,4474.5,4474.2,0.23]
[1756949734728,0.7024,4474.3,4474.2,0.4302]
[1756949734929,0.7024,4474.3,4474.2,0.9365]
[1756949738828,0.7024,4474.3,4474.2,0.4067]
[1756949739021,0.4012,4473.8,4473.7,0.2002]
[1756949739228,0.7024,4473.8,4473.1,2.83205205]
[1756949739433,0.3012,4473.7,4473.2,0.229]
[1756949739631,0.5056,4473.3,4473.2,0.9355]
[1756949739823,0.7024,4473.3,4472.8,0.2998]
[1756949740028,0.7024,4472.4,4472.3,0.2002]
[1756949740227,0.1247,4472.5,4471.7,3.03225205]
[1756949740228,0.2044,4471.8,4471.7,3.03225205]
[1756949740429,0.7024,4471.8,4471.7,0.4067]
[1756949740728,0.3012,4471.7,4471.2,3.13185205]
[1756949741031,0.5056,4471.4,4471.3,0.9365]
[1756949741634,0.7024,4471.4,4471.0,0.23]
[1756949742228,0.4012,4471.4,4471.0,0.23]
[1756949742532,0.1247,4471.5,4471.0,0.23]
[1756949742533,0.4759,4471.1,4471.0,0.4206]
[1756949742734,0.6696,4471.1,4471.0,0.1906]
[1756949743527,0.6696,4471.1,4471.0,0.7044]
[1756949743727,0.1247,4471.5,4471.0,0.1209]
[1756949743728,0.2824,4471.5,4471.0,0.1209]
[1756949743932,0.2824,4471.5,4471.4,3.53645205]
[1756949743933,0.4759,4471.5,4471.4,3.53645205]
[1756949745630,0.6696,4471.5,4471.4,3.53645205]
[1756949746338,0.7826,4471.5,4471.3,0.23]
[1756949746539,0.7826,4471.5,4471.4,0.1906]
[1756949746838,0.6696,4471.5,4471.4,0.7044]
[1756949747037,0.7826,4471.5,4471.4,0.7044]
[1756949747233,0.7826,4471.5,4471.4,0.3981]
[1756949749740,0.4759,4471.5,4471.4,3.53645205]
[1756949749940,0.1935,4471.5,4471.4,3.53645205]
[1756949750132,0.1935,4471.5,4471.4,0.7044]
[1756949751343,0.4759,4471.5,4471.4,0.7044]
[1756949752444,0.1935,4471.5,4471.4,0.7044]
[1756949752848,0.4759,4471.5,4471.4,0.7044]
[1756949757152,0.2824,4472.4,4471.5,0.1209]
[1756949757453,0.1935,4472.4,4472.3,3.53645205]
[1756949757642,0.6696,4472.4,4472.3,3.76545205]
[1756949758544,0.2824,4473.4,4472.6,0.3063]
[1756949758852,0.6696,4472.9,4472.2,0.3063]
[1756949759046,0.6696,4472.9,4472.3,0.229]
[1756949759248,0.113,4472.5,4472.4,0.1906]
[1756949759545,0.5002,4472.5,4472.4,0.1906]
[1756949759948,0.7826,4472.5,4472.4,0.1906]
[1756949761458,0.3872,4471.6,4471.5,0.1906]
[1756949761652,0.1935,4471.2,4471.1,3.32895205]
[1756949761857,0.1935,4471.2,4471.1,3.76545205]
[1756949762158,0.4759,4471.2,4471.1,3.76545205]
[1756949762456,0.6696,4471.2,4470.2,35.01605205]
[1756949762755,0.4759,4470.4,4470.3,0.9334]
[1756949763153,0.4759,4470.8,4470.7,0.3981]
[1756949763358,0.113,4472.0,4471.3,0.3981]
[1756949763556,0.113,4473.0,4471.4,0.3063]
[1756949763756,0.6696,4472.4,4472.3,0.3981]
[1756949764062,0.6696,4472.4,4472.3,0.7044]
[1756949764753,0.2824,4472.9,4472.3,0.3981]
[1756949765059,0.7826,4472.5,4472.4,0.3116]
[1756949765251,0.5002,4472.5,4472.2,0.23]
[1756949765450,0.6696,4472.3,4472.2,0.4206]
[1756949766458,0.6696,4472.3,4472.2,0.23]
[1756949767256,0.6696,4472.3,4472.2,0.4206]
[1756949768353,0.6696,4472.3,4472.2,0.1906]
[1756949769764,0.3872,4472.1,4472.0,3.06205205]
[1756949770061,0.6696,4472.1,4472.0,3.06205205]
[1756949770859,0.6696,4472.1,4472.0,3.25265205]
[1756949772564,0.6696,4472.1,4472.0,0.4206]
[1756949773864,0.118,4472.0,4471.5,0.3063]
[1756949774061,0.7045,4471.6,4471.5,0.2053]
[1756949774264,0.7045,4470.9,4470.8,0.6949]
[1756949774462,0.7045,4470.9,4470.8,0.6339]
[1756949774762,0.3046,4470.8,4470.2,32.184]
[1756949774961,0.7045,4470.3,4470.2,32.474]
[1756949775159,0.7045,4470.3,4470.2,32.704]
[1756949775361,0.7045,4470.3,4470.2,0.4953]
[1756949775559,0.7045,4470.3,4470.2,0.9249]
[1756949776861,0.118,4471.0,4470.2,4.6349]
[1756949777067,0.7045,4471.8,4471.7,0.2053]
[1756949777265,1.22916985,4471.8,4471.7,0.2053]
[1756949777671,1.22916985,4471.8,4471.7,0.4049]
[1756949777856,1.22916985,4471.8,4471.7,0.2053]
[1756949778865,1.22916985,4471.8,4471.7,0.6949]
[1756949779264,0.7045,4471.8,4471.7,0.6949]
[1756949779764,0.7045,4471.8,4471.7,0.4049]
[1756949780265,0.7045,4471.8,4471.7,0.6949]
[1756949781558,0.118,4472.5,4471.7,0.6949]
[1756949781559,0.3046,4472.4,4471.8,0.29]
[1756949781765,1.22927334,4472.3,4472.2,0.2053]
[1756949782166,1.22927334,4472.3,4471.7,0.229]
[1756949782366,0.7045,4471.8,4471.7,0.2053]
[1756949782666,0.3999,4471.6,4471.5,0.4343]
[1756949782861,0.7045,4471.6,4471.5,0.4343]
[1756949783071,0.5056,4471.9,4471.8,0.4049]
[1756949783269,0.5056,4471.9,4471.8,0.6949]
[1756949783574,0.7045,4471.9,4471.8,0.6949]
[1756949784671,0.7045,4471.1,4471.0,0.2053]
[1756949784972,0.7045,4471.1,4471.0,0.4343]
[1756949785469,0.7045,4471.1,4471.0,0.229]
[1756949785665,0.201,4470.3,4470.2,3.52695205]
[1756949785868,0.118,4471.0,4470.2,3.23695205]
[1756949786067,0.201,4470.4,4470.3,0.9239]
[1756949786570,0.118,4471.0,4470.4,0.29]
[1756949786767,0.7045,4471.0,4470.9,0.4049]
[1756949786963,0.8225,4471.0,4470.9,0.4049]
[1756949788070,0.3046,4470.9,4470.4,0.229]
[1756949788380,0.8225,4470.5,4470.4,0.229]
[1756949788669,0.3046,4471.4,4470.9,0.29]
[1756949788871,0.3999,4471.0,4470.9,0.4953]
[1756949789168,0.8225,4471.0,4470.9,0.2053]
[1756949789375,0.7045,4471.0,4470.9,0.4049]
[1756949789670,0.8225,4471.0,4470.9,0.2053]
[1756949791076,0.8225,4471.0,4470.9,0.6949]
[1756949791077,0.201,4471.0,4470.9,0.6949]
[1756949791573,0.5056,4471.0,4470.9,0.6949]
[1756949792174,0.7045,4471.0,4470.9,0.6949]